[Event "Late-Titled-Tuesday-Blitz-May-07-2024"]
[Site "Chess.com"]
[Date "2024.05.07"]
[Round "8"]
[White "Axf7"]
[Black "dolynachess"]
[Result "1-0"]
[WhiteElo "2081"]
[BlackElo "2522"]
[TimeControl "180+1"]
[EndTime "15:29:51 PDT"]
[Termination "Axf7 won on time"]

1. e4 {[%clk 0:03:00.9]} 1... c5 {[%clk 0:02:52.1]} 2. Nf3 {[%clk 0:03:00.3]}
2... d6 {[%clk 0:02:52.5]} 3. d4 {[%clk 0:03:00.7]} 3... cxd4 {[%clk 0:02:53.4]}
4. Nxd4 {[%clk 0:03:01.1]} 4... Nf6 {[%clk 0:02:54.1]} 5. Nc3 {[%clk 0:03:01.3]}
5... g6 {[%clk 0:02:54.7]} 6. Be3 {[%clk 0:02:57]} 6... Nc6 {[%clk 0:02:52.4]}
7. f3 {[%clk 0:02:53.6]} 7... h5 {[%clk 0:02:49.5]} 8. Qd2 {[%clk 0:02:53.7]}
8... Nxd4 {[%clk 0:02:48.9]} 9. Bxd4 {[%clk 0:02:53.6]} 9... Bh6 {[%clk
0:02:49.3]} 10. Be3 {[%clk 0:02:52.6]} 10... Bxe3 {[%clk 0:02:49.1]} 11. Qxe3
{[%clk 0:02:52.9]} 11... Be6 {[%clk 0:02:50]} 12. Bb5+ {[%clk 0:02:51.8]} 12...
Kf8 {[%clk 0:02:49.6]} 13. Ba4 {[%clk 0:02:49.4]} 13... Qa5 {[%clk 0:02:48.1]}
14. O-O {[%clk 0:02:43.4]} 14... Rc8 {[%clk 0:02:39.4]} 15. Bb3 {[%clk
0:02:43.1]} 15... Qc5 {[%clk 0:02:39.6]} 16. Qxc5 {[%clk 0:02:39.6]} 16... Rxc5
{[%clk 0:02:40.5]} 17. Bxe6 {[%clk 0:02:39.8]} 17... fxe6 {[%clk 0:02:40.6]} 18.
Rf2 {[%clk 0:02:36.8]} 18... Kf7 {[%clk 0:02:40.1]} 19. Nd1 {[%clk 0:02:34.9]}
19... b5 {[%clk 0:02:36]} 20. Ne3 {[%clk 0:02:34.7]} 20... Rhc8 {[%clk
0:02:33.6]} 21. a3 {[%clk 0:02:30.2]} 21... a5 {[%clk 0:02:28.9]} 22. Kf1 {[%clk
0:02:28.6]} 22... Nd7 {[%clk 0:02:28.3]} 23. Ke1 {[%clk 0:02:27.1]} 23... Nb6
{[%clk 0:02:25.8]} 24. Kd1 {[%clk 0:02:24.8]} 24... Na4 {[%clk 0:02:24.5]} 25.
c3 {[%clk 0:02:06.5]} 25... d5 {[%clk 0:02:08.9]} 26. exd5 {[%clk 0:02:05.3]}
26... exd5 {[%clk 0:02:09.1]} 27. Rd2 {[%clk 0:02:05.5]} 27... Nb6 {[%clk
0:01:59.8]} 28. Ke2 {[%clk 0:02:03.4]} 28... a4 {[%clk 0:01:48.9]} 29. f4 {[%clk
0:01:57.6]} 29... e6 {[%clk 0:01:35.9]} 30. g3 {[%clk 0:01:45.3]} 30... Kf6
{[%clk 0:01:34.7]} 31. Re1 {[%clk 0:01:43.1]} 31... Rb8 {[%clk 0:01:29.6]} 32.
Kf3 {[%clk 0:01:25.4]} 32... Nc4 {[%clk 0:01:29.4]} 33. Nxc4 {[%clk 0:01:25.3]}
33... bxc4 {[%clk 0:01:29.2]} 34. Ree2 {[%clk 0:01:25.7]} 34... Rc7 {[%clk
0:01:18.6]} 35. h3 {[%clk 0:01:22.9]} 35... Rb6 {[%clk 0:01:14.4]} 36. Ke3
{[%clk 0:01:22.9]} 36... g5 {[%clk 0:00:49]} 37. fxg5+ {[%clk 0:01:20.9]} 37...
Kxg5 {[%clk 0:00:49.9]} 38. Kd4 {[%clk 0:01:21.2]} 38... Kf6 {[%clk 0:00:47.1]}
39. Rf2+ {[%clk 0:01:20.9]} 39... Ke7 {[%clk 0:00:47.2]} 40. Rde2 {[%clk
0:01:20.4]} 40... Rc8 {[%clk 0:00:31.6]} 41. Re5 {[%clk 0:01:09.3]} 41... Rg8
{[%clk 0:00:26.1]} 42. Re3 {[%clk 0:01:06.1]} 42... Rg5 {[%clk 0:00:20.5]} 43.
Ref3 {[%clk 0:00:58.2]} 43... Kd6 {[%clk 0:00:19.4]} 44. Re2 {[%clk 0:00:46.3]}
44... e5+ {[%clk 0:00:18.1]} 45. Ke3 {[%clk 0:00:46.6]} 45... Kc5 {[%clk
0:00:16.5]} 46. Kf2 {[%clk 0:00:46.6]} 46... d4 {[%clk 0:00:15.5]} 47. Rf8
{[%clk 0:00:43.5]} 47... d3 {[%clk 0:00:15.1]} 48. Rd2 {[%clk 0:00:43.6]} 48...
e4 {[%clk 0:00:14.6]} 49. Re8 {[%clk 0:00:43]} 49... Kd5 {[%clk 0:00:13.6]} 50.
Rd8+ {[%clk 0:00:40.6]} 50... Rd6 {[%clk 0:00:12.6]} 51. Re8 {[%clk 0:00:39.4]}
51... Re6 {[%clk 0:00:12.3]} 52. Rd8+ {[%clk 0:00:39]} 52... Kc6 {[%clk
0:00:12.7]} 53. Ke3 {[%clk 0:00:34.7]} 53... Rf5 {[%clk 0:00:12.6]} 54. Rc8+
{[%clk 0:00:33.6]} 54... Kd7 {[%clk 0:00:12.2]} 55. Rxc4 {[%clk 0:00:32.6]}
55... Rf3+ {[%clk 0:00:12.3]} 56. Kd4 {[%clk 0:00:33]} 56... Rxg3 {[%clk
0:00:11.5]} 57. Rxa4 {[%clk 0:00:32.5]} 57... Rxh3 {[%clk 0:00:09.1]} 58. Ra7+
{[%clk 0:00:32]} 58... Ke8 {[%clk 0:00:08.5]} 59. c4 {[%clk 0:00:30.6]} 59...
Rh4 {[%clk 0:00:07.1]} 60. Ke3 {[%clk 0:00:30.3]} 60... Rh3+ {[%clk 0:00:06.5]}
61. Kd4 {[%clk 0:00:30.7]} 61... Rg3 {[%clk 0:00:04.7]} 62. c5 {[%clk
0:00:29.8]} 62... h4 {[%clk 0:00:04.4]} 63. c6 {[%clk 0:00:29.9]} 63... Rxc6
{[%clk 0:00:01.2]} 64. Kxe4 {[%clk 0:00:30]} 64... h3 {[%clk 0:00:01.7]} 65.
Ra8+ {[%clk 0:00:29.4]} 65... Kf7 {[%clk 0:00:01.5]} 66. Rxd3 {[%clk 0:00:29.7]}
66... Re6+ {[%clk 0:00:00.3]} 67. Kf4 {[%clk 0:00:29.8]} 1-0

[Event "Late-Titled-Tuesday-Blitz-May-07-2024"]
[Site "Chess.com"]
[Date "2024.05.07"]
[Round "8"]
[White "rdarruda"]
[Black "EliteChess0967"]
[Result "0-1"]
[WhiteElo "2553"]
[BlackElo "2425"]
[TimeControl "180+1"]
[EndTime "15:29:57 PDT"]
[Termination "EliteChess0967 won by resignation"]

1. d4 {[%clk 0:03:00.9]} 1... Nf6 {[%clk 0:02:58.8]} 2. Nf3 {[%clk 0:03:00.6]}
2... d5 {[%clk 0:02:58.8]} 3. c4 {[%clk 0:02:59.2]} 3... c6 {[%clk 0:02:57.5]}
4. e3 {[%clk 0:02:58]} 4... a6 {[%clk 0:02:56.1]} 5. Nc3 {[%clk 0:02:57.6]} 5...
Bg4 {[%clk 0:02:54.6]} 6. b3 {[%clk 0:02:53.8]} 6... e6 {[%clk 0:02:54]} 7. Be2
{[%clk 0:02:53.8]} 7... Bb4 {[%clk 0:02:50.8]} 8. Bd2 {[%clk 0:02:53.7]} 8...
Nbd7 {[%clk 0:02:50.4]} 9. O-O {[%clk 0:02:53.2]} 9... O-O {[%clk 0:02:49.8]}
10. Qc2 {[%clk 0:02:51.4]} 10... Bf5 {[%clk 0:02:46.1]} 11. Bd3 {[%clk
0:02:51.2]} 11... Bxc3 {[%clk 0:02:44.8]} 12. Bxc3 {[%clk 0:02:48.4]} 12... Bxd3
{[%clk 0:02:43.5]} 13. Qxd3 {[%clk 0:02:47.7]} 13... Ne4 {[%clk 0:02:44.1]} 14.
Bb4 {[%clk 0:02:45.7]} 14... Re8 {[%clk 0:02:43.6]} 15. Nd2 {[%clk 0:02:45.7]}
15... Ndf6 {[%clk 0:02:34.8]} 16. f3 {[%clk 0:02:44.8]} 16... Nxd2 {[%clk
0:02:35.1]} 17. Bxd2 {[%clk 0:02:41.3]} 17... e5 {[%clk 0:02:27.4]} 18. dxe5
{[%clk 0:02:34.2]} 18... Rxe5 {[%clk 0:02:26.1]} 19. Bc3 {[%clk 0:02:32.1]}
19... Re6 {[%clk 0:02:22.3]} 20. Rad1 {[%clk 0:02:16.4]} 20... h6 {[%clk
0:01:30.2]} 21. Bxf6 {[%clk 0:02:06.9]} 21... Qxf6 {[%clk 0:01:29.8]} 22. cxd5
{[%clk 0:02:07.2]} 22... cxd5 {[%clk 0:01:30.2]} 23. Qxd5 {[%clk 0:02:07.2]}
23... Rxe3 {[%clk 0:01:30.4]} 24. Qxb7 {[%clk 0:02:07]} 24... Rae8 {[%clk
0:01:30.7]} 25. Rd2 {[%clk 0:01:37.2]} 25... Qg5 {[%clk 0:00:58.2]} 26. Rdf2
{[%clk 0:01:06.2]} 26... R8e6 {[%clk 0:00:51.2]} 27. Qc8+ {[%clk 0:00:53.4]}
27... Kh7 {[%clk 0:00:48.3]} 28. Qc2+ {[%clk 0:00:54]} 28... g6 {[%clk
0:00:46.9]} 29. f4 {[%clk 0:00:49.1]} 29... Qf5 {[%clk 0:00:23.2]} 30. Qxf5
{[%clk 0:00:47.8]} 30... gxf5 {[%clk 0:00:24.1]} 31. g3 {[%clk 0:00:47.8]} 31...
Rc6 {[%clk 0:00:22.1]} 32. Rd2 {[%clk 0:00:47.2]} 32... Kg6 {[%clk 0:00:21.3]}
33. Kf2 {[%clk 0:00:46.3]} 33... Rce6 {[%clk 0:00:19.3]} 34. Kg2 {[%clk
0:00:42.1]} 34... h5 {[%clk 0:00:19.6]} 35. Rf3 {[%clk 0:00:39.5]} 35... Re1
{[%clk 0:00:17.5]} 36. Kf2 {[%clk 0:00:33]} 36... Rh1 {[%clk 0:00:16.4]} 37. Kg2
{[%clk 0:00:26.1]} 37... Ree1 {[%clk 0:00:16.5]} 38. Rff2 {[%clk 0:00:22.7]}
38... Rhg1+ {[%clk 0:00:13.9]} 39. Kf3 {[%clk 0:00:22.6]} 39... Ra1 {[%clk
0:00:12.6]} 40. Rfe2 {[%clk 0:00:21.3]} 40... f6 {[%clk 0:00:12.3]} 41. Rd6
{[%clk 0:00:19.4]} 41... h4 {[%clk 0:00:10.4]} 42. gxh4 {[%clk 0:00:17.8]} 42...
Rg4 {[%clk 0:00:09.4]} 43. Rg2 {[%clk 0:00:17.4]} 43... Rf1+ {[%clk 0:00:08.6]}
44. Rf2 {[%clk 0:00:17.9]} 44... Rxf4+ {[%clk 0:00:08.1]} 45. Kxf4 {[%clk
0:00:16.7]} 45... Rxf2+ {[%clk 0:00:08.8]} 46. Kg3 {[%clk 0:00:16]} 46... Rxa2
{[%clk 0:00:09.7]} 47. h5+ {[%clk 0:00:16.2]} 47... Kxh5 {[%clk 0:00:09.9]} 48.
Rxf6 {[%clk 0:00:16.3]} 48... Kg5 {[%clk 0:00:10.5]} 49. Rb6 {[%clk 0:00:16.2]}
49... f4+ {[%clk 0:00:09.7]} 50. Kh3 {[%clk 0:00:15.7]} 50... Kf5 {[%clk
0:00:08.6]} 51. Rb8 {[%clk 0:00:14.8]} 51... Ke4 {[%clk 0:00:08.9]} 52. Re8+
{[%clk 0:00:12.6]} 52... Kf3 {[%clk 0:00:09.2]} 53. Ra8 {[%clk 0:00:10.6]} 53...
Ra3 {[%clk 0:00:09.2]} 54. b4 {[%clk 0:00:09.4]} 54... Kf2+ {[%clk 0:00:09.5]}
55. Kg4 {[%clk 0:00:09.6]} 55... f3 {[%clk 0:00:09.8]} 56. b5 {[%clk 0:00:09]}
56... Ra4+ {[%clk 0:00:08.9]} 57. Kh3 {[%clk 0:00:07.8]} 57... axb5 {[%clk
0:00:09.3]} 58. Rb8 {[%clk 0:00:06.5]} 58... Rb4 {[%clk 0:00:09.4]} 59. Rb7
{[%clk 0:00:06.5]} 59... Ke2 {[%clk 0:00:09.4]} 60. Re7+ {[%clk 0:00:06.5]}
60... Kf1 {[%clk 0:00:09.5]} 61. Kg3 {[%clk 0:00:06.6]} 61... f2 {[%clk
0:00:09.4]} 62. Rf7 {[%clk 0:00:06.9]} 62... Rb3+ {[%clk 0:00:09.7]} 63. Kg4
{[%clk 0:00:06.9]} 63... Kg1 {[%clk 0:00:10.1]} 64. h4 {[%clk 0:00:06.1]} 64...
f1=Q {[%clk 0:00:10.4]} 0-1

[Event "Late-Titled-Tuesday-Blitz-May-07-2024"]
[Site "Chess.com"]
[Date "2024.05.07"]
[Round "8"]
[White "PhileKhoob"]
[Black "zverr1"]
[Result "1-0"]
[WhiteElo "2350"]
[BlackElo "2493"]
[TimeControl "180+1"]
[EndTime "15:29:58 PDT"]
[Termination "PhileKhoob won by checkmate"]

1. Nf3 {[%clk 0:03:00.9]} 1... d5 {[%clk 0:02:55.6]} 2. g3 {[%clk 0:02:56.3]}
2... Nf6 {[%clk 0:02:54.9]} 3. Bg2 {[%clk 0:02:56.6]} 3... Nbd7 {[%clk 0:02:55]}
4. d4 {[%clk 0:02:55.8]} 4... Nb6 {[%clk 0:02:52.9]} 5. O-O {[%clk 0:02:54.5]}
5... g6 {[%clk 0:02:47.9]} 6. a4 {[%clk 0:02:53.1]} 6... a5 {[%clk 0:02:47.5]}
7. b3 {[%clk 0:02:53.4]} 7... Bg7 {[%clk 0:02:47.5]} 8. Nbd2 {[%clk 0:02:53.3]}
8... O-O {[%clk 0:02:48]} 9. Bb2 {[%clk 0:02:53.7]} 9... Bf5 {[%clk 0:02:46]}
10. Nh4 {[%clk 0:02:52]} 10... Be6 {[%clk 0:02:45.5]} 11. e4 {[%clk 0:02:49.7]}
11... dxe4 {[%clk 0:02:44.3]} 12. Nxe4 {[%clk 0:02:50.6]} 12... Nxe4 {[%clk
0:02:43]} 13. Bxe4 {[%clk 0:02:51.5]} 13... Bd5 {[%clk 0:02:40]} 14. Qe2 {[%clk
0:02:51.6]} 14... Bxe4 {[%clk 0:02:38.7]} 15. Qxe4 {[%clk 0:02:52.5]} 15... Nd5
{[%clk 0:02:19]} 16. c3 {[%clk 0:02:49]} 16... c6 {[%clk 0:02:17]} 17. Ng2
{[%clk 0:02:42.4]} 17... Re8 {[%clk 0:02:11.6]} 18. Ne3 {[%clk 0:02:41.8]} 18...
e6 {[%clk 0:02:08]} 19. Nc4 {[%clk 0:02:38.3]} 19... Qc7 {[%clk 0:01:50.2]} 20.
Rac1 {[%clk 0:02:35]} 20... b5 {[%clk 0:01:45.9]} 21. Ne5 {[%clk 0:02:27.1]}
21... bxa4 {[%clk 0:01:43]} 22. bxa4 {[%clk 0:02:24.3]} 22... Rab8 {[%clk
0:01:43.3]} 23. Ba1 {[%clk 0:02:22.5]} 23... Rb3 {[%clk 0:01:38.5]} 24. c4
{[%clk 0:02:18.2]} 24... Nb4 {[%clk 0:01:33.3]} 25. Rfd1 {[%clk 0:02:05]} 25...
Qd6 {[%clk 0:01:20]} 26. Qf4 {[%clk 0:01:51.9]} 26... Qe7 {[%clk 0:01:07.3]} 27.
Rb1 {[%clk 0:01:19.1]} 27... Ra3 {[%clk 0:01:03.5]} 28. Bb2 {[%clk 0:01:10.6]}
28... Rxa4 {[%clk 0:01:03]} 29. Bc3 {[%clk 0:01:08.1]} 29... f6 {[%clk
0:00:23.6]} 30. Nf3 {[%clk 0:00:23.8]} 30... Na2 {[%clk 0:00:23.6]} 31. Be1
{[%clk 0:00:18.4]} 31... Rxc4 {[%clk 0:00:22.8]} 32. Bxa5 {[%clk 0:00:17.7]}
32... Qa3 {[%clk 0:00:16.2]} 33. Be1 {[%clk 0:00:14.2]} 33... e5 {[%clk
0:00:16.2]} 34. Qe4 {[%clk 0:00:13.8]} 34... f5 {[%clk 0:00:11.7]} 35. Qe2
{[%clk 0:00:13.7]} 35... Ra4 {[%clk 0:00:05.9]} 36. Nxe5 {[%clk 0:00:13.2]}
36... Bxe5 {[%clk 0:00:03.3]} 37. dxe5 {[%clk 0:00:14.1]} 37... Qe7 {[%clk
0:00:03.6]} 38. Qe3 {[%clk 0:00:10]} 38... Qe6 {[%clk 0:00:03.4]} 39. f4 {[%clk
0:00:09]} 39... Re4 {[%clk 0:00:03.9]} 40. Qf3 {[%clk 0:00:07.5]} 40... g5
{[%clk 0:00:04]} 41. Bd2 {[%clk 0:00:07.1]} 41... g4 {[%clk 0:00:03.9]} 42. Qf2
{[%clk 0:00:05.7]} 42... Rd8 {[%clk 0:00:03.9]} 43. Be1 {[%clk 0:00:05.6]} 43...
Ra8 {[%clk 0:00:02.8]} 44. Ra1 {[%clk 0:00:05.5]} 44... Rea4 {[%clk 0:00:02.2]}
45. Rd2 {[%clk 0:00:05.6]} 45... h5 {[%clk 0:00:02.6]} 46. h3 {[%clk 0:00:04.3]}
46... h4 {[%clk 0:00:02.2]} 47. gxh4 {[%clk 0:00:03.8]} 47... Ra3 {[%clk
0:00:01.5]} 48. hxg4 {[%clk 0:00:03.4]} 48... fxg4 {[%clk 0:00:02.4]} 49. f5
{[%clk 0:00:04]} 49... Qxe5 {[%clk 0:00:02.6]} 50. Rad1 {[%clk 0:00:04.4]} 50...
Qe4 {[%clk 0:00:01.8]} 51. Re2 {[%clk 0:00:04.7]} 51... Qc4 {[%clk 0:00:01.3]}
52. Qg2 {[%clk 0:00:04]} 52... Kh7 {[%clk 0:00:01.1]} 53. Re7+ {[%clk
0:00:03.6]} 53... Kh6 {[%clk 0:00:01.4]} 54. Rd6+ {[%clk 0:00:02.8]} 54... Kh5
{[%clk 0:00:01.2]} 55. Rh7# {[%clk 0:00:03.3]} 1-0

[Event "Late-Titled-Tuesday-Blitz-May-07-2024"]
[Site "Chess.com"]
[Date "2024.05.07"]
[Round "8"]
[White "KaydenTroffChess"]
[Black "mishanick"]
[Result "0-1"]
[WhiteElo "2881"]
[BlackElo "3061"]
[TimeControl "180+1"]
[EndTime "15:29:59 PDT"]
[Termination "mishanick won by resignation"]

1. d4 {[%clk 0:03:00.1]} 1... Nf6 {[%clk 0:02:59.9]} 2. Nf3 {[%clk 0:03:00.8]}
2... d5 {[%clk 0:03:00.2]} 3. Bf4 {[%clk 0:03:01.4]} 3... c5 {[%clk 0:02:59.6]}
4. e3 {[%clk 0:03:01.8]} 4... Nc6 {[%clk 0:03:00.3]} 5. Nc3 {[%clk 0:03:02]}
5... Bg4 {[%clk 0:02:32.1]} 6. dxc5 {[%clk 0:02:59.3]} 6... Rc8 {[%clk
0:01:58.7]} 7. Be2 {[%clk 0:02:42]} 7... e6 {[%clk 0:01:56.8]} 8. Ne5 {[%clk
0:02:41.4]} 8... Bxe2 {[%clk 0:01:55.6]} 9. Qxe2 {[%clk 0:02:42.3]} 9... Bxc5
{[%clk 0:01:55.2]} 10. Qb5 {[%clk 0:02:28.6]} 10... Qb6 {[%clk 0:01:52]} 11. Nd3
{[%clk 0:02:24.9]} 11... Qxb5 {[%clk 0:01:39.2]} 12. Nxb5 {[%clk 0:02:24.7]}
12... Be7 {[%clk 0:01:40]} 13. Nd6+ {[%clk 0:02:20]} 13... Bxd6 {[%clk
0:01:39.6]} 14. Bxd6 {[%clk 0:02:20.9]} 14... Ne4 {[%clk 0:01:39.4]} 15. Ba3
{[%clk 0:02:20.7]} 15... Na5 {[%clk 0:01:31.3]} 16. f3 {[%clk 0:02:13.8]} 16...
Nf6 {[%clk 0:01:31.5]} 17. O-O-O {[%clk 0:01:53]} 17... Nc4 {[%clk 0:01:31]} 18.
Bc5 {[%clk 0:01:53.2]} 18... Nd7 {[%clk 0:01:24.5]} 19. Bd4 {[%clk 0:01:30.4]}
19... e5 {[%clk 0:01:23.4]} 20. b3 {[%clk 0:01:00.4]} 20... Na3 {[%clk
0:00:49.5]} 21. Kb2 {[%clk 0:01:00.1]} 21... exd4 {[%clk 0:00:43.5]} 22. Kxa3
{[%clk 0:00:57.6]} 22... dxe3 {[%clk 0:00:44.1]} 23. Rhe1 {[%clk 0:00:49.2]}
23... O-O {[%clk 0:00:43.3]} 24. Nb4 {[%clk 0:00:47.4]} 24... Rfe8 {[%clk
0:00:30.5]} 25. Nxd5 {[%clk 0:00:44.5]} 25... Rxc2 {[%clk 0:00:23.7]} 26. Rxe3
{[%clk 0:00:33.6]} 26... Kf8 {[%clk 0:00:15.3]} 27. Rxe8+ {[%clk 0:00:13]} 27...
Kxe8 {[%clk 0:00:16.2]} 28. Ne3 {[%clk 0:00:13]} 28... Re2 {[%clk 0:00:15.8]}
29. Rd3 {[%clk 0:00:13.2]} 29... Nc5 {[%clk 0:00:11.8]} 30. Rc3 {[%clk
0:00:13.4]} 30... Ne6 {[%clk 0:00:11.6]} 31. h4 {[%clk 0:00:11.5]} 31... Nd4
{[%clk 0:00:11.4]} 32. Kb4 {[%clk 0:00:11.6]} 32... g6 {[%clk 0:00:06.2]} 33.
Kc5 {[%clk 0:00:10.8]} 33... Ne6+ {[%clk 0:00:06.1]} 34. Kd6 {[%clk 0:00:11]}
34... Rxa2 {[%clk 0:00:06.3]} 35. Nd5 {[%clk 0:00:11.4]} 35... Ra6+ {[%clk
0:00:05.7]} 36. Ke5 {[%clk 0:00:11.5]} 36... Rc6 {[%clk 0:00:04.2]} 37. Rd3
{[%clk 0:00:10]} 37... Kf8 {[%clk 0:00:02.8]} 38. b4 {[%clk 0:00:07.3]} 38...
Kg7 {[%clk 0:00:02.9]} 39. g4 {[%clk 0:00:07.6]} 39... a6 {[%clk 0:00:02.5]} 40.
g5 {[%clk 0:00:08.1]} 40... h6 {[%clk 0:00:02.9]} 41. f4 {[%clk 0:00:07.2]}
41... hxg5 {[%clk 0:00:03.2]} 42. hxg5 {[%clk 0:00:08.1]} 42... Nc7 {[%clk
0:00:02.7]} 43. Nf6 {[%clk 0:00:04.1]} 43... Re6+ {[%clk 0:00:02.9]} 44. Kd4
{[%clk 0:00:04.9]} 44... Rd6+ {[%clk 0:00:02.4]} 45. Ke4 {[%clk 0:00:05.6]}
45... Rxd3 {[%clk 0:00:02.8]} 46. Kxd3 {[%clk 0:00:06.5]} 46... Ne6 {[%clk
0:00:03.3]} 47. Nd5 {[%clk 0:00:06.3]} 47... Kf8 {[%clk 0:00:03.5]} 48. Kc4
{[%clk 0:00:06.9]} 48... Ke8 {[%clk 0:00:03.8]} 49. b5 {[%clk 0:00:07.6]} 49...
axb5+ {[%clk 0:00:03.3]} 50. Kxb5 {[%clk 0:00:08.5]} 50... Kd7 {[%clk 0:00:04]}
51. Kb6 {[%clk 0:00:08.9]} 51... Kd6 {[%clk 0:00:04.6]} 52. Nf6 {[%clk
0:00:06.6]} 52... Nxf4 {[%clk 0:00:04.8]} 53. Kxb7 {[%clk 0:00:07.3]} 53... Ne6
{[%clk 0:00:04.8]} 54. Nh7 {[%clk 0:00:07.8]} 54... Ke5 {[%clk 0:00:05.5]} 55.
Kb6 {[%clk 0:00:08]} 55... Kf5 {[%clk 0:00:06.3]} 56. Kc6 {[%clk 0:00:08]} 56...
Nxg5 {[%clk 0:00:06.9]} 57. Nf8 {[%clk 0:00:08.5]} 57... Ne6 {[%clk 0:00:07.3]}
58. Nd7 {[%clk 0:00:08.3]} 58... g5 {[%clk 0:00:07.9]} 59. Kd5 {[%clk 0:00:09]}
59... g4 {[%clk 0:00:08.3]} 60. Ne5 {[%clk 0:00:09.3]} 60... g3 {[%clk
0:00:08.4]} 61. Nf3 {[%clk 0:00:09.2]} 61... Kf4 {[%clk 0:00:08.7]} 62. Ng1
{[%clk 0:00:09.9]} 62... Ke3 {[%clk 0:00:08.8]} 63. Ke5 {[%clk 0:00:10.2]} 63...
g2 {[%clk 0:00:08.6]} 64. Kf6 {[%clk 0:00:09.7]} 64... Nf4 {[%clk 0:00:09]} 65.
Kxf7 {[%clk 0:00:06.7]} 65... Kf2 {[%clk 0:00:09.6]} 0-1

[Event "Late-Titled-Tuesday-Blitz-May-07-2024"]
[Site "Chess.com"]
[Date "2024.05.07"]
[Round "8"]
[White "Maitreia"]
[Black "Alex_Sahakyan2006"]
[Result "0-1"]
[WhiteElo "2704"]
[BlackElo "2848"]
[TimeControl "180+1"]
[EndTime "15:29:59 PDT"]
[Termination "Alex_Sahakyan2006 won by checkmate"]

1. c4 {[%clk 0:03:00.9]} 1... Nf6 {[%clk 0:02:54.1]} 2. Nc3 {[%clk 0:03:00.8]}
2... g6 {[%clk 0:02:55]} 3. g3 {[%clk 0:03:00.8]} 3... Bg7 {[%clk 0:02:55.5]} 4.
Bg2 {[%clk 0:03:01.5]} 4... O-O {[%clk 0:02:56.3]} 5. Nf3 {[%clk 0:03:02.3]}
5... c5 {[%clk 0:02:57]} 6. O-O {[%clk 0:03:02.5]} 6... Nc6 {[%clk 0:02:57.7]}
7. d3 {[%clk 0:03:03.1]} 7... d6 {[%clk 0:02:57.8]} 8. a3 {[%clk 0:03:03.1]}
8... Rb8 {[%clk 0:02:56.4]} 9. Rb1 {[%clk 0:03:03.7]} 9... Ne8 {[%clk
0:02:53.1]} 10. Bd2 {[%clk 0:03:02.1]} 10... a5 {[%clk 0:02:52.2]} 11. Ne1
{[%clk 0:03:02.2]} 11... e5 {[%clk 0:02:52.1]} 12. Nc2 {[%clk 0:03:02]} 12... f5
{[%clk 0:02:51.6]} 13. b4 {[%clk 0:03:01.5]} 13... axb4 {[%clk 0:02:49.1]} 14.
axb4 {[%clk 0:03:02.4]} 14... Bd7 {[%clk 0:02:19.1]} 15. bxc5 {[%clk 0:03:01.1]}
15... dxc5 {[%clk 0:02:17.7]} 16. Ne3 {[%clk 0:02:59.7]} 16... Nd6 {[%clk
0:02:09.7]} 17. Ned5 {[%clk 0:02:59.6]} 17... e4 {[%clk 0:02:03.3]} 18. Bf4
{[%clk 0:02:52.9]} 18... Be5 {[%clk 0:01:56.1]} 19. dxe4 {[%clk 0:02:43.1]}
19... Nxc4 {[%clk 0:01:53]} 20. Qb3 {[%clk 0:02:17.9]} 20... N6a5 {[%clk
0:01:49.3]} 21. Qa2 {[%clk 0:02:17.9]} 21... Bxf4 {[%clk 0:01:25.7]} 22. Nxf4
{[%clk 0:02:18.8]} 22... b5 {[%clk 0:01:10.7]} 23. exf5 {[%clk 0:02:19]} 23...
Rxf5 {[%clk 0:01:07.3]} 24. Rfd1 {[%clk 0:02:10.1]} 24... Qe8 {[%clk 0:01:01.1]}
25. Bd5+ {[%clk 0:02:03.6]} 25... Kg7 {[%clk 0:00:37.1]} 26. e4 {[%clk
0:02:00.7]} 26... Rf8 {[%clk 0:00:14.7]} 27. Qa1 {[%clk 0:01:59.9]} 27... Kh6
{[%clk 0:00:08.8]} 28. Nce2 {[%clk 0:01:47.6]} 28... Bg4 {[%clk 0:00:08.9]} 29.
Rd3 {[%clk 0:01:21.4]} 29... Qe5 {[%clk 0:00:08.8]} 30. f3 {[%clk 0:01:09.8]}
30... Bc8 {[%clk 0:00:09]} 31. Qa2 {[%clk 0:01:04.1]} 31... g5 {[%clk
0:00:08.8]} 32. Ng2 {[%clk 0:00:48.9]} 32... Bh3 {[%clk 0:00:09.1]} 33. f4
{[%clk 0:00:41.9]} 33... Qg7 {[%clk 0:00:02.3]} 34. fxg5+ {[%clk 0:00:32.2]}
34... Qxg5 {[%clk 0:00:02.1]} 35. Nef4 {[%clk 0:00:33.1]} 35... Bg4 {[%clk
0:00:02.3]} 36. Qf2 {[%clk 0:00:21]} 36... Qe5 {[%clk 0:00:02.4]} 37. Qxc5
{[%clk 0:00:20.4]} 37... Rbe8 {[%clk 0:00:02.7]} 38. Qxb5 {[%clk 0:00:16.5]}
38... Rb8 {[%clk 0:00:03]} 39. Qa6+ {[%clk 0:00:12.7]} 39... Rf6 {[%clk
0:00:03.5]} 40. Qxf6+ {[%clk 0:00:09.7]} 40... Qxf6 {[%clk 0:00:04.4]} 41. Rxb8
{[%clk 0:00:09.9]} 41... Qa1+ {[%clk 0:00:05.1]} 42. Kf2 {[%clk 0:00:09.3]}
42... Qa2+ {[%clk 0:00:05.5]} 43. Ke1 {[%clk 0:00:07.3]} 43... Ne5 {[%clk
0:00:03.5]} 44. Rb6+ {[%clk 0:00:06.5]} 44... Kg7 {[%clk 0:00:04]} 45. Rd2
{[%clk 0:00:07]} 45... Nf3+ {[%clk 0:00:04.1]} 46. Ke2 {[%clk 0:00:07.5]} 46...
Qxd2+ {[%clk 0:00:04.5]} 47. Kf1 {[%clk 0:00:07.4]} 47... Nxh2+ {[%clk
0:00:04.5]} 48. Kg1 {[%clk 0:00:07.4]} 48... Nf3+ {[%clk 0:00:04.8]} 49. Kf1
{[%clk 0:00:08.1]} 49... Qd1+ {[%clk 0:00:04]} 50. Kf2 {[%clk 0:00:08.3]} 50...
Qd4+ {[%clk 0:00:04.3]} 51. Ke2 {[%clk 0:00:07.8]} 51... Qxb6 {[%clk 0:00:04.4]}
52. Ne6+ {[%clk 0:00:08.4]} 52... Bxe6 {[%clk 0:00:04.5]} 53. Kxf3 {[%clk
0:00:09.3]} 53... Bxd5 {[%clk 0:00:04.6]} 54. exd5 {[%clk 0:00:10.2]} 54... Nc4
{[%clk 0:00:05.2]} 55. Nf4 {[%clk 0:00:11.1]} 55... Qe3+ {[%clk 0:00:05.5]} 56.
Kg4 {[%clk 0:00:11.4]} 56... Ne5+ {[%clk 0:00:05.8]} 57. Kf5 {[%clk 0:00:11.9]}
57... Nf7 {[%clk 0:00:05.2]} 58. d6 {[%clk 0:00:11.6]} 58... Qe5+ {[%clk
0:00:05.1]} 59. Kg4 {[%clk 0:00:12.5]} 59... Qxd6 {[%clk 0:00:04.8]} 60. Nh5+
{[%clk 0:00:12.6]} 60... Kg8 {[%clk 0:00:04.7]} 61. Nf4 {[%clk 0:00:13.5]} 61...
Ne5+ {[%clk 0:00:05.1]} 62. Kf5 {[%clk 0:00:13.9]} 62... Ng6 {[%clk 0:00:05.7]}
63. g4 {[%clk 0:00:14.2]} 63... Qe5# {[%clk 0:00:05]} 0-1